Cogmind - Beta 10.2 @@@ ROGUE MODE // 2021.03.08 @ 20:07:48 Player: The Phoenix Tome Result: Destroyed by S-10 Pest with Light Assault Rifle Performance ------------- Evolutions (0) 0 Regions Visited (2) 400 Robots Destroyed (30) 150 Value Destroyed (761) 761 Prototype IDs (0) 0 Alien Tech Used (0) 0 Bonus (0) 0 TOTAL SCORE: 1311 Bonus ------- None Cogmind --------- Core Integrity 0/250 Matter 260/300 Energy 265/265 System Corruption 1% Temperature Cool (234) Movement Treading (220) Ox3 Location -10/Mines Parts ------- > --- POWER (1) -------- Improved Ion Engine > --- PROPULSION (2) --- Light Treads Compact Wheel > --- UTILITY (2) ------ High-capacity Storage Unit High-capacity Storage Unit > --- WEAPON (2) ------- Beamcaster Light Cannon > --- INVENTORY (20) --- Improved Ion Engine Light Treads Carbon-fiber Leg Carbon-fiber Leg Heat Sink Improved Heat Sink High-capacity Storage Unit High-capacity Matter Pod (200) Targeting Computer Light Armor Plating EM Pulse Gun Small Laser Light Assault Rifle Light Assault Rifle Heavy Assault Rifle Assault Cannon Grenade Launcher Rocket Launcher Great Maul Peak State ------------ > --- POWER ------------ Improved Ion Engine > --- PROPULSION ------- Light Treads Compact Wheel > --- UTILITY ---------- High-capacity Storage Unit High-capacity Storage Unit > --- WEAPON ----------- Beamcaster Light Cannon > --- INVENTORY -------- Improved Ion Engine Light Treads Carbon-fiber Leg Carbon-fiber Leg Heat Sink Improved Heat Sink High-capacity Storage Unit High-capacity Matter Pod Targeting Computer Light Armor Plating EM Pulse Gun Small Laser Light Assault Rifle Light Assault Rifle Heavy Assault Rifle Assault Cannon Grenade Launcher Rocket Launcher Great Maul [Rating: 15] Favorites ----------- Power Improved Ion Engine Engine Improved Ion Engine Propulsion Light Treads Treads Light Treads Leg Aluminum Leg Wheel Wheel Utility High-capacity Storage Unit Storage High-capacity Storage Unit Weapon Light Assault Rifle Energy Gun Beamcaster Ballistic Gun Light Assault Rifle Ballistic Cannon Light Cannon Launcher Rocket Launcher Build | -11 -10 -10 ------- Run | Scr Mat Min Slots Evolved . | . . . Power . | . . . Propulsion . | . . . Utility . | . . . Weapon . | . . . Parts Attached 21 | 2 10 9 Power 3 | . 3 . Engine 3 | . 3 . Core . | . . . Reactor . | . . . Propulsion 5 | . 3 2 Treads 3 | . 2 1 Leg . | . . . Wheel 2 | . 1 1 Hover . | . . . Flight . | . . . Utility 3 | 1 2 . Device . | . . . Storage 3 | 1 2 . Processor . | . . . Hackware . | . . . Protection . | . . . Artifact . | . . . Weapon 10 | 1 2 7 Energy Gun 5 | 1 . 4 Energy Cannon . | . . . Ballistic Gun 2 | . 1 1 Ballistic Cannon 2 | . 1 1 Launcher 1 | . . 1 Special Weapon . | . . . Impact Weapon . | . . . Slashing Weapon . | . . . Piercing Weapon . | . . . Special Melee Weapon . | . . . Unidentified Prototypes . | . . . Parts Lost 7 | . 3 4 Power 1 | . 1 . Propulsion 2 | . . 2 Utility . | . . . Weapon 4 | . 2 2 Highest Loss Streak 1 | . 1 1 Average Slot Usage (%) 99 | . 99 99 Engine 13 | . 13 14 Treads 18 | . 21 14 Leg 2 | . 5 . Wheel 6 | . 1 13 Storage 28 | . 28 28 Energy Gun 6 | . 1 13 Ballistic Gun 11 | . 14 7 Ballistic Cannon 9 | . 12 6 Naked Turns . | . . . Heaviest Build 79 | 14 75 79 Greatest Support 40 | 20 40 20 Greatest Overweight (x) 7 | . 7 7 Average Overweight (x) 3 | . 1 6 Largest Inventory Capacity 20 | 8 20 20 Average Capacity 15 | 6 12 20 Most Carried 20 | 6 16 20 Average Carried 13 | 6 9 17 Final Capacity 20 | 8 20 20 Final Carried 19 | 6 15 19 Class Distribution -------------------- 62% | Hauler-Mutant 37% | Mutant Dominant Class ---------------- Mutant | -10/Materials Hauler-Mutant | -10/Mines Resources | -11 -10 -10 ----------- Run | Scr Mat Min Matter Collected 851 | 228 471 152 Remotely . | . . . Salvage Created 909 | 59 559 291 Parts 64 | 3 37 24 Haulers Intercepted 1 | . 1 . Recyclers Shooed . | . . . Parts Field Recycled . | . . . Retrieved Matter . | . . . Parts Self-Destructed . | . . . Prevented . | . . . Kills | -11 -10 -10 ------- Run | Scr Mat Min Combat Hostiles Destroyed 27 | . 13 14 Guns 17 | . 7 10 Cannons 9 | . 5 4 AOE 1 | . 1 . Classes Destroyed 6 | 1 3 2 Hauler 1 | . 1 . Recycler 1 | 1 . . Operator 1 | . 1 . Swarmer 11 | . . 11 Grunt 15 | . 13 2 Sentry 1 | . . 1 Best Kill Streak 6 | 1 4 6 Combat Bots Only 6 | . 4 6 Max Kills in Single Turn 1 | 1 1 1 Gunslinging . | . . . Exploded 1 | . 1 . Melee . | . . . Uniques/NPCs Destroyed . | . . . Combat | -11 -10 -10 -------- Run | Scr Mat Min Damage Taken 1206 | . 551 655 Core 250 | . 114 136 Absorbed by Shields . | . . . Core Remaining (%) 100 | 100 . . Volleys Fired 105 | 4 62 39 Largest 2 | 2 2 2 Hottest 110 | 40 60 110 Shots Fired 206 | 8 124 74 Gun 152 | 8 88 56 Cannon 54 | . 36 18 Launcher . | . . . Special . | . . . Kinetic 150 | 8 98 44 Thermal 12 | . . 12 Explosive . | . . . Electromagnetic 44 | . 26 18 Robot Hit Streak 9 | 2 9 8 Robot Miss Streak 4 | 1 4 3 Penetration Max . | . . . Secondary Targets 2 | . . 2 Max Gunslinging Chain 1 | . . 1 Shots Hit Robots 122 | 5 76 41 Core Hits 50 | 2 29 19 Critical Hits 1 | . . 1 Critical Kills . | . . . Critical Parts Destroyed 1 | . . 1 Melee Attacks . | . . . Impact . | . . . Slashing . | . . . Piercing . | . . . Sneak Attacks . | . . . Combat Hostiles . | . . . Follow-up Attacks . | . . . Damage Inflicted 1531 | 49 877 605 Guns 972 | 49 573 350 Cannons 424 | . 261 163 Explosions 135 | . 43 92 Melee . | . . . Ramming . | . . . Kinetic 926 | 49 585 292 Thermal 261 | . 43 218 Explosive . | . . . Electromagnetic 344 | . 249 95 Impact . | . . . Slashing . | . . . Piercing . | . . . Highest Corruption 1 | . 1 1 Average Corruption 1 | . 1 1 Corruption Purged . | . . . Effects 8 | . 4 4 Message Errors 4 | . 2 2 Data Loss (minor) 2 | . 1 1 Targeting Errors 2 | . 1 1 Overload Shots . | . . . Overflow Damage 15 | . . 15 Projectiles 15 | . . 15 Explosions . | . . . Melee . | . . . Knockbacks 4 | . 3 1 Impact . | . . . Kinetic 4 | . 3 1 Secondary . | . . . Self-Inflicted Damage . | . . . Shots . | . . . Rammed . | . . . Targets Rammed . | . . . Kicked . | . . . Crushed . | . . . Highest Temperature 250 | . 191 250 Average Temperature 58 | . 55 62 Received Heat Transfer 399 | . 300 99 Effects 2 | . . 2 Interference 2 | . . 2 Siege Activations . | . . . Robots Corrupted . | . . . Combat Hostiles . | . . . Parts Fried . | . . . Impact Corruptions . | . . . Robots Melted . | . . . Combat Hostiles . | . . . Parts Melted 2 | . . 2 Heat Transferred 372 | . 50 322 Parts Sabotaged . | . . . Parts Stolen . | . . . Parts Stripped . | . . . Power Chain Reactions 2 | . 1 1 Missiles Intercepted . | . . . Alert | -11 -10 -10 ------- Run | Scr Mat Min Peak Influence 276 | 5 252 276 Initial 6 | . 3 6 Average 101 | 3 71 143 Maximum Alert Level 1 | . 1 1 Low Security (%) 77 | 100 85 67 Level 1 22 | . 14 32 Level 2 . | . . . Level 3 . | . . . Level 4 . | . . . Level 5 . | . . . High Security . | . . . Max Security . | . . . Squads Dispatched 5 | . 4 1 Investigation 3 | . 2 1 Extermination . | . . . Reinforcement 2 | . 2 . Assault . | . . . Garrison . | . . . Intercept . | . . . Construction Impeded . | . . . Haulers Reinforced . | . . . Stealth | -11 -10 -10 --------- Run | Scr Mat Min Distress Signals 3 | . 3 . Communications Jammed . | . . . Distress Signals . | . . . Times Spotted 42 | . 25 17 Peak Tracking Total 5 | . 4 5 Tactical Retreats 1 | . . 1 Traps | -11 -10 -10 ------- Run | Scr Mat Min Traps Triggered 2 | . 2 . Indirectly . | . . . Trap Hack Attempts . | . . . Triggered . | . . . Disarmed . | . . . Reprogrammed . | . . . Reused . | . . . Traps Extracted . | . . . Installed . | . . . Triggered 1 | . 1 . Machines | -11 -10 -10 ---------- Run | Scr Mat Min Machines Disabled 2 | . 1 1 Max in Single Turn 1 | . 1 1 Machines Sabotaged . | . . . Garrisons Compromised . | . . . Overloaded Fab Kills . | . . . Fab Network Shutdowns . | . . . Hacking | -11 -10 -10 --------- Run | Scr Mat Min Machines Accessed 7 | . 5 2 Terminals 5 | . 4 1 Fabricators . | . . . Repair Stations 1 | . 1 . Recycling Units . | . . . Scanalyzers . | . . . Garrison Access . | . . . Total Hacks 18 | . 14 4 Successful 7 | . 6 1 Failed 11 | . 8 3 Catastrophic 3 | . 2 1 Database Lockouts . | . . . Manual 13 | . 10 3 Terminals 14 | . 11 3 Fabricators . | . . . Repair Stations 3 | . 3 . Recycling Units . | . . . Scanalyzers . | . . . Garrison Access . | . . . Terminal Hacks 5 | . 4 1 Part Schematic 1 | . 1 . Open Door 1 | . . 1 Unreport Threat 1 | . 1 . Locate Traps 1 | . 1 . Registered Components 1 | . 1 . Fabricator Hacks . | . . . Repair Station Hacks 2 | . 2 . Scan Component 1 | . 1 . Repair 1 | . 1 . Recycling Unit Hacks . | . . . Scanalyzer . | . . . Garrison Access Hacks . | . . . Unauthorized Hacks . | . . . Terminals . | . . . Fabricators . | . . . Repair Stations . | . . . Recycling Units . | . . . Scanalyzers . | . . . Garrison Access . | . . . Data Cores Recovered . | . . . Used . | . . . Hacking Detections 4 | . 3 1 Full Trace Events 2 | . 2 . Feedback Events 1 | . 1 . Corruption 1 | . 1 . Feedback Blocked . | . . . Robot Schematics Acquired . | . . . Robots Built . | . . . Matter . | . . . Time . | . . . Total Robot Build Rating . | . . . Part Schematics Acquired 1 | . 1 . Parts Built . | . . . Matter . | . . . Time . | . . . Total Part Build Rating . | . . . Parts Repaired 1 | . 1 . Time 26 | . 26 . Parts Recycled . | . . . Recycled Matter . | . . . Retrieved Matter . | . . . Retrieved Components . | . . . Parts Scanalyzed . | . . . Part Schematics Acquired . | . . . Parts Damaged . | . . . Bothacking | -11 -10 -10 ------------ Run | Scr Mat Min Used RIF Installer . | . . . Robots Hacked . | . . . Non-combat . | . . . Combat . | . . . Robot Hacks Applied . | . . . Relay Couplers Released . | . . . Robots Rewired . | . . . Allies Hacked . | . . . Hacks Repelled . | . . . Allies | -11 -10 -10 -------- Run | Scr Mat Min Total Allies . | . . . Largest Group . | . . . Highest-Rated Group . | . . . Highest-Rated Ally . | . . . Total Orders . | . . . Ally Attacks . | . . . Total Damage . | . . . Kills . | . . . Allies Corrupted . | . . . Allies Melted . | . . . Intel | -11 -10 -10 ------- Run | Scr Mat Min Robot Analysis Total . | . . . Derelict Logs Recovered 1 | . . 1 Drone Launches . | . . . Drone Recoveries . | . . . Exploration | -11 -10 -10 ------------- Run | Scr Mat Min Turns Passed 1850 | 34 1017 799 Spaces Moved 928 | 18 487 423 Core . | . . . Treads 361 | . 359 2 Legs 97 | 18 79 . Wheels 470 | . 49 421 Hover . | . . . Flight . | . . . Fastest Speed 120 | 120 120 140 Average Speed 154 | 120 159 149 Slowest Speed 220 | 120 180 220 Overloaded Moves . | . . . Propulsion Burnouts . | . . . Robots Hopped . | . . . Cave-ins Triggered . | . . . Exploration Rate (%) 62 | 3 93 91 Regions Visited 2 Branch Regions 1 Pre-discovered Areas . | . . . Known Exits Taken . | . . . Unknown Exits Taken 2 | 1 1 . Scrap Searched 2 | . . 2 Spaces Dug . | . . . Terrain Destroyed 10 | . 2 8 Melee . | . . . Projectile . | . . . AOE 10 | . 2 8 Terrain Rammed . | . . . Walls Destroyed . | . . . Machines Disabled . | . . . Actions | -11 -10 -10 --------- Run | Scr Mat Min Total 1161 | 23 616 522 Wait 65 | . 34 31 Move 926 | 17 486 423 Hop . | . . . Pick Up 32 | . 18 14 Fast Attach 1 | 1 . . Attach 11 | . 5 6 Detach . | . . . Swap 9 | 1 5 3 Drop 12 | . 6 6 Fire 105 | 4 62 39 Melee . | . . . Ram . | . . . Kick . | . . . Crush . | . . . Escape Stasis . | . . . Rewire . | . . . Trap . | . . . Miscellaneous . | . . . Route ------- -11/Scrapyard -10/Materials (discovered 3 exits: [*Mat x2] / *Min) -10/Mines (discovered 2 exits: [*Mat x2]) History --------- Turn | Location | Event 12 | -11/Scrapyard | Discovered new exit (range 3) 35 | -11/Scrapyard | Entered Materials 250 | -10/Materials | Discovered new exit (range 13) 301 | -10/Materials | Build established: Mutant 475 | -10/Materials | Discovered new exit (range 7) 682 | -10/Materials | Discovered new exit (range 16) 978 | -10/Materials | Repaired Lgt. Treads 1000 | -10/Materials | Build established: Hauler-Mutant 1052 | -10/Materials | Entered Mines 1060 | -10/Mines | Met a Derelict bent on vengeance 1070 | -10/Mines | Core integrity fell below 50% 1186 | -10/Mines | Received a Rocket Launcher from a helpful Derelict 1381 | -10/Mines | Joined a pair of Derelicts in attacking an 0b10 outpost 1383 | -10/Mines | Core integrity fell below 20% 1571 | -10/Mines | Met a Derelict shopkeep closing up shop 1677 | -10/Mines | Discovered new exit (range 11) 1728 | -10/Mines | Discovered new exit (range 8) 1851 | -10/Mines | Destroyed by S-10 Pest with Light Assault Rifle Last Messages --------------- 01768_ K-01 Serf cleans the Core Extractor. 01770_ Dropped Aluminum Leg. 01774_ Acquired Carbon-fiber Leg. 01780_ Acquired 17 matter. 01783_ Acquired Carbon-fiber Leg. 01809_ K-01 Serf collects debris. 01822_ Laser Drill disabled. 01825_ Destroyed Flight Unit. 01825_ Flight Unit melted. 01825_ S-10 Pest destroyed. 01831_ K-01 Serf collects debris. 01837_ Destroyed Flight Unit. 01839_ K-01 Serf collects debris. 01840_ System corrupted: Beamcaster targeting data glitched. 01842_ Overheating: System interference. 01842_ Beamcaster temporarily disabled. 01842_ K-01 Serf collects debris. 01843_ S-10 Pest knocked back. 01848_ System corrupted: Component data lost. 01849_ Destroyed Lgt. Ion Engine. Map ----- +----------------------------------------------------+ | #????????????## ## ##??######## #?? | | #????????????# #?????????# #?? | | #????????????# """ #?????????# #?? | | #????????????# """ #??????????# ##?? | | #?????????????# """ #??????????## ##??? | | ###?????????????###### #???????????# ##???? | | ?????????????#######?#### #???????????# ###????? | | ?????????????# #????# #???????????# #??????? | | #????????????# ### #????# #???????????# #??????? | | ###?####?????# #?# #????# #???????????# #??????? | | ### ####### #?# #????# #???????????# #??????? | | %= ### ###### #???????????# #??????? | | """ #### #=%#???????????# #??????? | | # *""" #??# """ """ #*!#???????????# #??????? | | ##=%""" #??# """ """ # #???????????# #??????? | | ?# #??#[%""" """ # #???????????# #??????? | | ?# #??# # #???????????# #??????? | | ?## ##??# < """ #= #????????#### #??????? | | ??### #???# """ ==%#????????# #??????? | | ????# #???# """%= # !#????????# #??????? | | #???# #???# * # #???###### #######???? | | ##??# #???##############= #??##"%## #???? | | ##?# #??????#########?#% #??#"" *# #???? | | ### #?????? ?#* #??# ]! / #???? | | ## #??????? % #% #??#![ / #???? | | #?????????"" "" #@ #??#""!%# #???? | | ######?????????"" """ #??##" ## #???? | | ###??????????????"" """s #???##### #???? | | ???????????????? ####???????###########???? | | ????????????????########?????????????????????????? | | ?????????????????????????????????????????????????? | | ?????????????????????????????????????????????????? | | | | | | | | | | | | | | | | | | | | | | | | | | | | | | | | | | | | | +----------------------------------------------------+ Best States ------------- Heat Dissipation 25 Energy Generation 12 Energy Capacity 265 Matter Stores 300 Matter Capacity 300 Sight Range 16 Terrain Scan Density 10 Evasion (%) 40 Recoil Reduction 2 Item Schematics ----------------- Hcp. Storage Unit | -10/Materials | Hacked Robot Schematics ------------------ None Fabricated ------------ Nothing Alien Tech Used ----------------- None Achievements -------------- None Challenges ------------ None Game ------ Seed ReinforcedXenonInverter Manual? 0 Play Time 00:34:38 Cumulative 35.2 hours Start 2021.03.08 @ 19:26:41 End 2021.03.08 @ 20:07:48 Sessions 1 Manual Loads 0 Difficulty Rogue Special Mode None Game No. 15 Rogue 15 Adventurer 0 Explorer 0 Win Type - Total 0 Types 0/0/0/0/0/0/0/0/0 Lore% 23 Gallery% 33 Achievement% 26 Wizard Run 0 Options --------- ASCII 0 Keyboard 0 Movement Numpad Keybinds 0 Fullscreen 1 Font 20/SmallcapsGlow Map View 66x50 Tactical HUD 1 Map Filters NONE Filters NONE Steam 1 RUN: 262ce2e2-64cc-4a5a-ad79-2cbb1cda8e82